bitfinex/quotes_ETHUSD_20241216
["timestamp","ask_amount","ask_price","bid_price","bid_amount"]
[1734352932214,1.06935024,3904.6,3903.6,0.3023]
[1734352932365,4.05210577,3904.4,3902.8,0.3023]
[1734352932570,2.5617,3903.7,3902.8,0.3023]
[1734352932903,1.06935024,3903.9,3903.0,0.76863]
[1734352933208,0.8856178,3903.8,3902.8,1.07097]
[1734352933412,1.06935024,3904.0,3902.8,1.07097]
[1734352933647,1.95554243,3903.9,3902.8,0.3023]
[1734352933924,1.06935024,3904.1,3902.8,2.75038041]
[1734352934126,3.2846528,3904.1,3903.3,0.3023]
[1734352934275,0.88612102,3904.0,3903.3,0.3023]
[1734352934474,0.88636706,3903.9,3903.3,0.3023]
[1734352934725,1.06935024,3904.1,3903.3,0.3023]
[1734352934894,3.28526599,3904.1,3903.3,0.3023]
[1734352935719,3.28526599,3904.1,3902.7,2.08531303]
[1734352935720,0.8263,3903.6,3902.7,0.2488]
[1734352935893,2.44808041,3903.7,3902.7,0.2488]
[1734352935894,5.24325883,3902.8,3902.7,0.2488]
[1734352936096,7.17189862,3902.8,3902.7,0.2488]
[1734352936414,7.33662809,3902.8,3902.7,0.2488]
[1734352936607,8.5514778,3902.8,3902.7,0.2488]
[1734352937125,8.55120278,3902.8,3902.7,0.2488]
[1734352937291,8.38637633,3902.8,3902.7,0.2488]
[1734352939499,6.77840947,3902.8,3902.7,0.2488]
[1734352939694,4.21614947,3902.8,3902.7,0.2488]
[1734352940700,6.77840947,3902.8,3902.7,0.2488]
[1734352941733,7.77459246,3902.8,3902.7,0.2488]
[1734352942709,5.21233246,3902.8,3902.7,0.2488]
[1734352943313,4.14125047,3902.8,3902.7,0.2488]
[1734352944863,3.32810237,3902.8,3902.7,0.2488]
[1734352944990,3.32808591,3902.8,3902.7,0.2488]
[1734352945186,2.00024971,3902.8,3902.7,0.2488]
[1734352945438,5.89028063,3902.8,3902.7,0.2488]
[1734352945928,5.89022235,3902.8,3902.7,0.2488]
[1734352946807,6.96130434,3902.8,3902.7,0.2488]
[1734352947207,5.89022235,3902.8,3902.7,0.2488]
[1734352947700,6.96130434,3902.8,3902.7,0.2488]
[1734352948339,6.96130434,3902.8,3902.7,1.2488]
[1734352949423,6.96094377,3902.8,3902.7,1.2488]
[1734352949940,1.57192577,3903.1,3902.7,1.2488]
[1734352950099,2.56222,3902.9,3902.7,1.2488]
[1734352950711,1.07108199,3903.0,3902.7,1.2488]
[1734352950907,1.3271598,3902.9,3902.7,1.2488]
[1734352951100,1.07108199,3903.0,3902.7,1.2488]
[1734352951540,2.56207,3903.1,3902.7,1.2488]
[1734352951541,3.63315199,3903.1,3902.7,1.2488]
[1734352951725,3.88928283,3903.0,3902.7,1.2488]
[1734352951931,2.56218,3903.0,3902.7,1.2488]
[1734352952802,2.56226,3902.8,3902.7,1.2488]
[1734352953234,4.11910529,3903.0,3902.7,1.2488]
[1734352953553,1.87727271,3902.9,3902.7,1.2488]
[1734352953705,1.62108199,3902.9,3902.7,1.2488]
[1734352953907,0.772,3902.8,3902.7,1.2488]
[1734352954125,2.80421648,3902.8,3902.7,1.2488]
[1734352955111,1.47690722,3902.8,3902.7,1.2488]
[1734352955407,2.80422484,3902.8,3902.7,1.2488]
[1734352955605,1.47690722,3902.8,3902.7,1.2488]
[1734352956324,0.70490722,3902.8,3902.7,1.2488]
[1734352956651,3.0480233,3903.0,3902.7,1.2488]
[1734352956652,1.07108199,3903.2,3902.7,1.2488]
[1734352956953,1.07108199,3903.3,3902.7,1.2488]
[1734352957134,1.07108199,3903.1,3902.7,1.2488]
[1734352957309,1.32733111,3903.0,3902.7,1.2488]
[1734352957507,1.07108199,3903.1,3902.7,1.2488]
[1734352957822,1.3273504,3903.0,3902.7,1.2488]
[1734352958152,1.07108199,3903.1,3902.7,1.2488]
[1734352958308,1.59530335,3903.0,3902.7,1.2488]
[1734352958509,0.26790488,3903.0,3902.7,1.2488]
[1734352958828,1.33898687,3903.0,3902.7,1.2488]
[1734352959011,1.32741067,3902.9,3902.7,1.2488]
[1734352959347,0.8044,3902.9,3902.7,1.2488]
[1734352959550,0.37513537,3902.8,3902.7,1.2488]
[1734352960308,1.70258842,3902.8,3902.7,1.2488]
[1734352960509,0.8044,3902.9,3902.7,1.2488]
[1734352960777,1.07108199,3902.8,3902.7,1.2488]
[1734352961061,1.07108199,3902.8,3900.7,2.57871258]
[1734352961062,2.93548055,3902.8,3900.9,0.3023]
[1734352961261,1.0703172,3902.6,3900.9,0.3023]
[1734352961551,1.0703172,3902.4,3900.9,0.3023]
[1734352961867,3.51839761,3902.1,3900.9,0.3023]
[1734352962160,3.28293019,3902.0,3900.9,0.3023]
[1734352962350,3.28293019,3902.0,3900.2,0.13147942]
[1734352962351,0.55,3901.8,3900.4,0.3023]
[1734352962656,0.55,3901.6,3900.4,0.3023]
[1734352962857,0.62810106,3901.5,3900.4,0.3023]
[1734352963163,0.62810106,3901.5,3900.0,0.39998964]
[1734352963164,0.8325,3901.4,3900.0,0.39998964]
[1734352963332,0.8325,3901.4,3899.9,0.3023]
[1734352963333,1.9028172,3901.2,3899.9,0.3023]
[1734352963530,0.88486642,3901.1,3899.9,0.3023]
[1734352963747,0.8325,3901.2,3899.9,0.3023]
[1734352964691,0.55,3900.7,3899.9,0.3023]
[1734352964835,1.0703172,3901.0,3899.9,0.3023]
[1734352965033,1.97775015,3900.9,3899.9,0.3023]
[1734352965232,0.55,3900.8,3899.9,0.3023]
[1734352966240,0.7614,3900.7,3899.7,0.1609523]
[1734352966767,0.55,3900.6,3899.7,0.1609523]
[1734352971347,0.7614,3900.7,3899.7,0.1609523]
[1734352971536,0.38603669,3900.7,3899.7,0.1609523]
[1734352971736,0.55,3900.9,3899.8,0.3023]
[1734352971971,0.8222,3901.0,3899.8,0.3023]
[1734352973167,3.38569,3901.0,3899.8,0.3023]
[1734352973370,2.56332,3901.2,3900.0,0.3023]
[1734352974137,2.56332,3901.2,3899.7,0.1609523]
[1734352974138,2.56332,3901.2,3900.1,0.7692]
[1734352974391,2.56332,3901.2,3900.2,0.3023]
[1734352975081,0.8171,3901.7,3900.2,1.07149]
[1734352975082,2.56315,3901.5,3900.2,1.07149]
[1734352975377,2.56318,3901.4,3900.3,0.3023]
[1734352975739,0.8171,3901.7,3900.4,0.02563777]
[1734352975942,0.8065,3902.0,3900.7,0.76908]
[1734352976175,2.56285,3901.9,3900.8,0.3023]
[1734352976583,0.18768172,3902.0,3900.8,0.3023]
[1734352976752,2.56295,3901.8,3900.8,0.3023]
[1734352977153,2.56275,3902.1,3900.9,0.3023]
[1734352977353,2.56275,3902.1,3901.0,0.3023]
[1734352978092,2.56279,3902.0,3901.0,0.3023]
[1734352978519,2.44808041,3901.3,3899.6,0.3023]
[1734352978688,0.7681,3901.2,3899.8,0.3023]
[1734352978894,2.56352,3900.9,3899.8,0.3023]
[1734352979400,0.7681,3901.2,3899.8,0.3023]
[1734352979700,2.56386,3900.4,3899.8,0.3023]
[1734352979899,2.5637,3900.6,3899.8,0.3023]
[1734352980266,2.56356,3900.9,3899.8,0.3023]
[1734352980609,2.56379,3900.5,3899.8,0.3023]
[1734352980909,0.87161804,3901.1,3899.8,0.3023]
[1734352981060,2.56357,3900.9,3899.8,0.3023]
[1734352981573,0.40877985,3901.0,3899.8,0.3023]
[1734352982097,2.56351,3900.9,3900.0,0.3023]
[1734352982815,0.40877985,3901.0,3900.0,0.3023]
[1734352983197,2.97224985,3901.0,3900.0,0.3023]
[1734352983367,2.93759499,3900.9,3900.0,0.3023]
[1734352984080,0.37403499,3900.9,3900.0,0.3023]
[1734352984293,2.56358,3900.8,3900.0,0.3023]
[1734352984497,2.56347,3901.0,3900.0,0.3023]
[1734352984678,0.7681,3901.2,3900.0,0.3023]
[1734352985093,2.56334,3901.2,3900.0,1.07151]
[1734352985293,0.256334,3901.1,3900.1,0.3023]
[1734352986024,2.56315,3901.5,3900.1,0.3023]
[1734352986240,2.56315,3901.5,3900.4,0.76914]
[1734352986392,2.5629,3901.9,3899.8,0.76925]
[1734352986393,2.5629,3901.9,3900.5,0.3023]
[1734352986607,0.55,3901.9,3900.5,0.3023]
[1734352986905,2.56342,3901.1,3900.5,0.3023]
[1734352987087,0.256342,3901.0,3900.5,0.3023]
[1734352988178,2.56319,3901.4,3900.5,0.3023]
[1734352988426,0.7722,3901.5,3900.5,0.3023]
[1734352988427,2.56325,3901.3,3900.5,0.3023]
[1734352989031,2.44808041,3901.7,3900.5,0.3023]
[1734352989331,3.46227363,3902.6,3900.8,0.3023]
[1734352989332,1.0703172,3902.2,3900.8,0.3023]
[1734352989484,1.35267572,3902.1,3900.8,0.3023]
[1734352989681,2.56291,3901.9,3900.8,0.3023]
[1734352989898,2.56292,3901.8,3900.8,0.3023]
[1734352990096,2.56306,3901.6,3900.8,0.3023]
[1734352990389,2.819366,3901.6,3900.8,0.3023]
[1734352991239,2.56312,3901.5,3900.8,0.3023]
[1734352992205,0.256306,3901.6,3900.8,0.3023]
[1734352993201,0.2488,3900.9,3900.8,0.3023]
[1734352993407,0.2488,3900.9,3900.8,1.07137]
[1734352993826,0.2488,3900.9,3900.8,1.255418]
[1734352994551,0.2488,3900.9,3900.8,3.72912959]
[1734352994889,0.2488,3900.9,3900.3,1.06783303]
[1734352995097,0.2488,3900.9,3900.1,0.3023]
[1734352995620,2.81231,3900.9,3900.1,0.3023]
[1734352997041,0.2488,3900.9,3900.1,0.3023]
[1734352997351,2.81232,3900.9,3900.1,0.3023]
[1734352997493,2.81232,3900.9,3899.7,0.1609523]
[1734352997494,1.051332,3900.8,3899.7,0.1609523]
[1734352997693,2.56364,3900.7,3899.7,0.1609523]
[1734352997940,2.56405,3900.1,3899.7,0.1609523]
[1734352998541,3.38441,3900.0,3899.7,0.1609523]
[1734352999145,3.38441,3900.0,3898.2,0.76957]
[1734352999146,0.8203,3899.7,3897.9,1.60174955]
[1734352999296,0.8203,3899.0,3897.5,0.3023]
[1734352999699,0.7622,3899.4,3898.0,0.7696]
[1734352999942,0.94545172,3899.4,3898.0,0.7696]
[1734353000165,0.94545172,3899.4,3897.7,0.3023]
[1734353000166,3.50996172,3899.4,3897.7,0.3023]
[1734353000422,3.50996172,3899.4,3897.1,1.83762303]
[1734353000423,0.7871,3898.5,3897.1,0.3023]
[1734353000609,0.7871,3898.5,3897.4,0.76972]
[1734353001239,0.7871,3898.5,3897.1,0.3023]
[1734353001546,1.575067,3899.3,3897.7,2.44808041]
[1734353001547,0.7614,3899.1,3897.7,2.44808041]
[1734353001900,0.18325172,3899.4,3898.5,0.3023]
[1734353002098,4.339346,3899.6,3898.5,0.3023]
[1734353002099,0.75,3899.6,3898.5,0.3023]
[1734353002301,0.75,3899.6,3898.5,1.07182]
[1734353002625,0.75,3899.6,3898.6,0.76948]
[1734353002807,1.1152641,3899.6,3898.5,0.3023]
[1734353003008,2.56443,3899.5,3898.5,0.3023]
[1734353003222,0.75,3899.6,3898.5,0.3023]
[1734353003797,0.7631,3900.1,3898.9,0.76943]
[1734353003998,0.7631,3900.1,3899.0,0.76942]
[1734353004245,0.332701,3900.0,3899.1,0.7694]
[1734353004399,0.332701,3900.0,3899.2,0.76938]
[1734353004604,0.7631,3900.1,3899.2,0.76938]
[1734353004832,0.7631,3900.1,3898.5,0.3023]
[1734353005069,0.7631,3900.1,3898.7,0.76946]
[1734353005237,1.09581,3900.1,3898.8,0.76946]
[1734353005438,1.09581,3900.1,3898.5,0.3023]
[1734353005756,1.09581,3900.1,3898.9,0.76944]
[1734353005757,3.65987,3900.1,3898.9,0.76944]
[1734353006076,1.09581,3900.1,3898.9,0.76944]
[1734353006571,2.56416,3900.0,3898.7,0.76948]
[1734353006981,1.09581,3900.1,3898.9,0.76944]
[1734353007520,0.7631,3900.1,3898.9,0.76944]
[1734353008586,0.7852,3899.5,3897.7,1.06783303]
[1734353008730,0.7852,3899.5,3897.8,0.3023]
[1734353008731,1.8555172,3899.5,3897.8,0.3023]
[1734353008936,0.7852,3899.5,3898.2,0.76958]
[1734353009247,0.18555172,3899.4,3898.2,0.76958]
[1734353009443,0.7852,3899.5,3898.2,0.76958]
[1734353010076,2.5645,3899.4,3898.2,0.76958]
[1734353011490,0.7852,3899.8,3898.3,0.3023]
[1734353011945,2.56442,3899.6,3898.3,1.07186]
[1734353012133,2.5646,3899.3,3898.3,0.3023]
[1734353012336,2.56449,3899.4,3898.3,0.3023]
[1734353012562,2.56462,3899.3,3898.3,0.3023]
[1734353012891,0.334962,3899.5,3898.3,0.3023]
[1734353013213,0.2899382,3899.4,3898.5,0.76952]
[1734353013348,0.2899382,3899.4,3898.3,0.3023]
[1734353013553,0.2899382,3899.4,3898.4,0.76953]
[1734353014089,0.2899382,3899.4,3898.3,0.3023]
[1734353014090,0.2899382,3899.4,3898.6,0.7695]
[1734353014385,0.7852,3899.8,3898.6,0.7695]
[1734353014386,2.56431,3899.7,3898.6,0.7695]
[1734353014943,0.7852,3899.8,3898.8,0.76946]
[1734353015785,2.5643,3899.7,3898.5,0.7695]
[1734353017248,0.7852,3899.8,3898.3,0.3023]
[1734353017551,0.7852,3899.8,3898.5,0.7695]
[1734353017852,0.7852,3899.8,3898.3,1.07186]
[1734353018071,2.56443,3899.5,3898.3,1.07186]
[1734353018282,2.820953,3899.4,3898.3,1.07186]
[1734353018659,0.256443,3899.4,3898.3,0.3023]
[1734353018993,2.56437,3899.6,3898.4,0.76954]
[1734353019178,0.7852,3899.8,3898.4,0.76954]
[1734353019482,2.56443,3899.5,3898.4,0.76954]
[1734353020077,0.7852,3899.8,3898.6,0.7695]
[1734353021318,2.5643,3899.7,3898.6,0.7695]
[1734353021481,0.33495,3899.6,3898.3,0.3023]
[1734353021677,0.8174,3900.1,3898.9,0.3023]
[1734353023016,3.38146,3900.1,3898.9,1.07174]
[1734353023244,2.902256,3900.0,3898.9,1.07174]
[1734353023526,0.338146,3900.0,3899.0,0.76942]
[1734353023735,2.5639,3900.4,3899.2,0.76937]
[1734353023905,2.56397,3900.2,3899.2,0.76937]
[1734353024101,2.56397,3900.2,3899.0,0.76942]
[1734353024599,0.8221,3900.5,3898.9,0.3023]
[1734353024600,2.56385,3900.4,3898.9,0.3023]
[1734353024929,3.33245667,3900.4,3899.3,0.76936]
[1734353025999,3.33245667,3900.4,3899.0,0.3023]
[1734353026000,0.76860667,3900.4,3899.5,0.76932]
[1734353026203,0.8221,3900.5,3899.5,0.76932]
[1734353026387,0.8221,3900.5,3899.0,1.09735284]
[1734353026388,0.8221,3900.5,3899.6,1.0716]
[1734353029460,0.8221,3900.5,3899.6,0.3023]
[1734353031264,0.8221,3900.5,3899.6,1.0716]
[1734353031670,0.8221,3900.5,3899.6,0.3023]
[1734353031829,0.8221,3900.5,3898.3,0.3023]
[1734353032174,2.56391,3900.3,3899.0,0.76942]
[1734353032317,0.32824194,3900.4,3899.0,0.3023]
[1734353032519,0.8221,3900.5,3899.7,0.76928]
[1734353032949,0.8221,3900.5,3899.6,0.3023]
[1734353033979,0.2488,3900.9,3900.3,1.07146]
[1734353034141,0.2488,3900.9,3900.4,0.79477671]
[1734353034342,0.2488,3900.9,3900.5,0.76912]
[1734353035153,0.2488,3900.9,3900.3,1.07146]
[1734353035976,0.2488,3900.9,3900.3,0.3023]
[1734353037179,0.2488,3900.9,3899.5,3.0]
[1734353037180,0.8091,3900.6,3899.1,1.06783303]
[1734353037381,0.8091,3900.6,3898.1,0.3023]
[1734353037382,0.8091,3899.8,3898.1,0.3023]
[1734353037562,2.56436,3899.6,3898.1,0.3023]
[1734353037767,2.56486,3898.9,3898.1,0.3023]
[1734353038065,2.56496,3898.7,3898.1,0.3023]
[1734353038371,2.56477,3899.0,3898.1,0.3023]
[1734353038595,1.0703172,3899.4,3898.1,0.3023]
[1734353038596,2.56461,3899.3,3898.1,0.3023]
[1734353038925,2.5647,3899.1,3898.1,0.3023]
[1734353040225,1.0703172,3899.5,3898.3,2.46031945]
[1734353040426,0.8091,3899.6,3898.3,2.46031945]
[1734353040637,2.56443,3899.5,3898.1,0.3023]
[1734353040842,0.3700472,3899.4,3898.1,0.3023]
[1734353041131,0.3700472,3899.4,3898.1,1.0719]
[1734353041332,1.0703172,3900.2,3899.1,2.46031945]
[1734353041537,1.8794172,3900.6,3899.1,2.48596076]
[1734353041836,0.34873841,3900.5,3899.1,2.48596076]
[1734353042133,3.37285,3900.6,3899.1,3.22970945]
[1734353042488,1.0703172,3900.7,3898.4,1.06783303]
[1734353042489,2.56489,3898.8,3898.4,1.06783303]
[1734353042700,0.7995,3898.4,3897.1,0.4003717]
[1734353043024,2.56535,3898.1,3897.1,0.4003717]
[1734353043190,2.5653,3898.2,3897.0,3.92028926]
[1734353043388,3.25981945,3898.4,3897.0,3.92028926]
[1734353043389,2.56537,3898.1,3897.0,3.92028926]
[1734353043622,2.56537,3898.1,3897.1,0.3023]
[1734353043623,2.56536,3898.1,3897.1,0.3023]
[1734353043804,4.17296686,3898.7,3897.1,0.3023]
[1734353043805,1.60796686,3898.7,3897.2,0.02565605]
[1734353044005,0.7995,3899.0,3897.8,0.76964]
[1734353044190,1.60796686,3899.5,3897.2,0.76978]
[1734353044191,4.4342472,3899.5,3897.9,1.07193]
[1734353044388,3.44640825,3899.4,3897.9,1.07193]
[1734353044595,2.56459,3899.3,3897.9,1.07193]
[1734353044820,0.36204905,3899.2,3897.9,0.3023]
[1734353045094,1.8698172,3899.5,3897.9,0.3023]
[1734353045290,3.75997095,3899.4,3897.9,0.3023]
[1734353045530,0.88191493,3899.3,3897.9,0.3023]
[1734353045714,2.87805602,3899.4,3897.9,0.3023]
[1734353045919,2.56464,3899.2,3897.9,0.3023]
[1734353046234,0.73123132,3899.3,3897.9,0.3023]
[1734353046446,2.5647,3899.1,3897.9,0.3023]
[1734353047352,2.5648,3899.0,3897.9,0.3023]
[1734353047673,0.73123132,3899.3,3897.9,0.3023]
[1734353047956,0.7995,3899.5,3897.9,0.3023]
[1734353048158,1.0703172,3899.7,3898.5,0.76951]
[1734353048464,3.46498406,3900.0,3898.7,0.3023]
[1734353048664,1.0703172,3900.0,3898.9,0.76942]
[1734353048951,2.56393,3900.3,3898.7,0.3023]
[1734353048952,0.02564005,3899.9,3898.7,0.3023]
[1734353049149,2.56414,3900.0,3898.7,0.3023]
[1734353049310,2.95584978,3899.9,3898.7,0.3023]
[1734353049822,2.93020973,3899.9,3898.7,0.3023]
[1734353050238,0.02564005,3899.8,3898.7,0.3023]
[1734353051144,2.58990005,3899.8,3898.7,0.3023]
[1734353051345,2.56426,3899.8,3898.7,0.3023]
[1734353051597,0.29302697,3899.7,3898.7,0.3023]
[1734353051885,0.36600973,3899.9,3898.7,0.3023]
[1734353051886,3.6342272,3900.3,3898.9,0.76944]
[1734353052089,2.56391,3900.3,3898.9,0.76944]
[1734353052392,0.88177294,3900.2,3898.7,0.3023]
[1734353052553,3.6341772,3900.4,3899.1,0.3023]
[1734353052739,2.2044973,3900.3,3899.1,0.3023]
[1734353052938,0.66591745,3900.2,3899.2,0.02564257]
[1734353053185,0.66591745,3900.2,3899.3,0.76936]
[1734353053353,1.60796686,3900.7,3899.4,0.79497249]
[1734353053354,1.0703172,3900.7,3899.4,0.79497249]
[1734353053560,2.5636,3900.8,3899.4,0.79497249]
[1734353053561,1.0703172,3900.8,3899.5,1.07162]
[1734353053744,0.88177543,3900.7,3899.6,0.02563951]
[1734353054091,0.2488,3900.9,3899.7,0.76928]
[1734353054250,0.46334672,3900.8,3899.7,0.76928]
[1734353054768,0.2488,3900.9,3899.8,0.79489818]
[1734353055071,0.2488,3900.9,3899.5,0.3023]
[1734353055072,0.2488,3900.9,3899.9,0.02563812]
[1734353055270,0.2488,3900.9,3899.9,0.79487812]
[1734353055474,0.2488,3900.9,3900.1,0.3023]
[1734353055991,2.56365,3900.7,3900.1,0.3023]
[1734353056156,0.02564005,3900.6,3900.1,0.3023]
[1734353056341,0.53258801,3900.9,3900.1,0.3023]
[1734353056545,3.09610801,3900.9,3900.1,0.3023]
[1734353056797,0.8103,3900.2,3899.0,0.76942]
[1734353056946,2.87805602,3900.7,3899.1,0.7694]
[1734353056947,2.56382,3900.5,3899.1,0.7694]
[1734353057852,2.56382,3900.5,3898.9,0.3023]
[1734353057999,2.56382,3900.5,3899.2,0.76938]
[1734353058205,0.02564005,3900.4,3898.9,0.3023]
[1734353058514,2.56388,3900.4,3898.9,1.07172]
[1734353058743,2.85440444,3900.3,3898.9,1.07172]
[1734353059064,2.56413,3900.0,3898.9,0.3023]
[1734353059241,0.29049444,3900.3,3898.9,0.3023]
[1734353059762,0.29049444,3900.3,3898.2,0.89654391]
[1734353059763,0.29049444,3900.3,3899.4,0.3023]
[1734353060052,0.3410644,3900.6,3899.5,0.76931]
[1734353060253,1.0703172,3900.8,3899.7,0.76928]
[1734353060453,3.09609801,3900.9,3899.7,0.76928]
[1734353060950,2.56358,3900.8,3899.5,0.76932]
[1734353061156,0.02564005,3900.7,3899.5,0.76932]
[1734353061323,2.58929005,3900.7,3899.5,0.76932]
[1734353061661,0.49430152,3900.8,3899.5,0.76932]
[1734353062003,3.05790152,3900.8,3899.5,0.76932]
[1734353062247,0.35904895,3900.7,3899.4,0.3023]
[1734353062460,2.5637,3900.6,3899.4,0.3023]
[1734353062603,0.02564005,3900.5,3899.4,1.07164]
[1734353062811,3.05788152,3900.8,3899.4,1.07164]
[1734353063358,0.49430152,3900.8,3899.4,1.07164]
[1734353063526,2.56364,3900.7,3899.4,1.07164]
[1734353063707,2.56358,3900.8,3899.5,0.76932]
[1734353064533,0.53258801,3900.9,3899.4,1.07164]
[1734353064534,2.5637,3900.7,3899.4,1.07164]
[1734353065247,2.56371,3900.6,3899.4,1.07164]
[1734353065468,2.56377,3900.5,3899.4,0.3023]
[1734353065670,4.50681492,3900.4,3898.8,0.76945]
[1734353065870,2.56407,3900.1,3898.9,0.3023]
[1734353066175,1.037077,3900.4,3898.9,0.3023]
[1734353066176,2.56411,3900.0,3898.9,0.3023]
[1734353066934,2.56398,3900.2,3898.9,1.07174]
[1734353067136,3.24121852,3900.4,3898.9,1.07174]
[1734353067365,2.56404,3900.1,3898.9,1.07174]
[1734353067569,3.24121852,3900.4,3898.9,1.07174]
[1734353067753,0.68753057,3900.3,3899.0,0.76942]
[1734353067936,0.68753057,3900.3,3899.1,0.7694]
[1734353068274,2.56397,3900.2,3899.2,0.3023]
[1734353068440,1.0703172,3900.6,3899.2,0.3023]
[1734353068761,0.59042026,3900.5,3899.4,0.76932]
[1734353069137,0.59042026,3900.5,3899.6,0.3023]
[1734353069339,0.59042026,3900.5,3899.6,1.0716]
[1734353069656,3.09610801,3900.9,3899.6,1.0716]
[1734353069858,0.53258801,3900.9,3899.6,0.3023]
[1734353070382,0.53258801,3900.9,3899.8,0.76926]
[1734353070575,0.53258801,3900.9,3899.6,1.0716]
[1734353070783,2.01,3900.0,3899.6,1.0716]
[1734353070941,0.2488,3900.9,3899.9,1.62155]
[1734353071141,0.2488,3900.9,3900.7,0.76907]
[1734353072077,0.2488,3900.9,3900.8,1.07137]
[1734353072648,2.13870049,3902.8,3900.8,1.07137]
[1734353072649,3.20901769,3903.1,3902.0,0.76883]
[1734353072918,3.20901769,3903.1,3901.5,0.76892]
[1734353072919,3.6321972,3903.4,3901.6,0.32792573]
[1734353073082,4.07181882,3903.3,3902.0,0.76882]
[1734353073284,3.19101646,3903.3,3902.0,0.76882]
[1734353073780,3.16537641,3903.3,3902.0,0.76882]
[1734353074194,0.60343641,3903.3,3902.0,0.76882]
[1734353074416,0.60343641,3903.3,3901.6,0.3023]
[1734353074566,0.14232765,3903.2,3902.0,0.76883]
[1734353074992,0.02564005,3903.1,3901.6,0.3023]
[1734353075517,2.56235,3902.7,3901.6,0.3023]
[1734353075670,0.85524005,3902.6,3901.6,0.3023]
[1734353075871,2.56267,3902.2,3901.6,0.3023]
[1734353076230,2.818997,3902.1,3901.6,0.3023]
[1734353076371,2.56273,3902.1,3901.6,0.3023]
[1734353077641,1.21264485,3903.2,3900.8,3.0]
[1734353077642,0.14232765,3903.2,3901.9,0.3023]
[1734353077938,0.14232765,3903.2,3902.0,0.76882]
[1734353077939,2.562,3903.2,3902.0,0.76882]
[1734353078323,2.562,3903.2,3901.9,0.3023]
[1734353078634,2.562,3903.2,3901.9,1.07113]
[1734353079134,2.58770005,3903.1,3901.9,0.3023]
[1734353079439,2.56243,3902.6,3901.9,0.3023]
[1734353080041,1.0703172,3903.8,3902.2,0.3023]
[1734353080208,1.60796686,3904.3,3902.2,1.07108]
[1734353080209,2.5618,3903.5,3902.2,1.07108]
[1734353080395,0.02564005,3903.4,3902.2,0.3023]
[1734353080598,0.7671,3903.2,3902.2,0.3023]
[1734353080907,2.56208,3903.1,3902.2,0.3023]
[1734353081112,0.332918,3903.0,3902.2,0.3023]
[1734353081612,2.56195,3903.3,3902.2,1.07108]
[1734353081937,2.56198,3903.3,3902.2,0.3023]
[1734353082121,0.79274005,3903.6,3902.2,0.3023]
[1734353082435,2.56207,3903.1,3902.2,0.3023]
[1734353082598,2.56213,3903.0,3902.2,0.3023]
[1734353083238,0.02564005,3902.9,3902.2,0.3023]
[1734353083440,2.56206,3903.2,3902.2,0.3023]
[1734353083600,2.56233,3902.7,3901.5,0.76891]
[1734353083802,0.02564005,3902.6,3901.5,0.76891]
[1734353084329,0.25879701,3902.6,3901.3,0.3023]
[1734353084541,0.25879701,3902.6,3901.6,0.76891]
[1734353085340,2.56259,3902.3,3901.3,0.3023]
[1734353086301,0.8036,3902.1,3899.9,0.3023]
[1734353086501,2.56291,3901.8,3900.1,0.7692]
[1734353086719,0.57564005,3901.7,3899.9,0.3023]
[1734353086942,2.56345,3901.0,3899.9,0.3023]
[1734353087124,2.56378,3900.5,3899.9,0.3023]
[1734353087513,3.35332,3901.2,3899.9,0.3023]
[1734353087714,2.56366,3900.7,3899.9,0.3023]
[1734353087935,0.6376436,3901.1,3899.9,0.3023]
[1734353087936,2.56372,3900.6,3899.9,0.3023]
[1734353088251,0.6376436,3901.1,3899.9,0.3023]
[1734353088252,3.2010536,3901.1,3899.9,0.3023]
[1734353088553,0.6376436,3901.1,3899.9,0.3023]
[1734353088737,0.44415033,3901.0,3900.0,0.76923]
[1734353088920,2.56344,3901.0,3899.9,0.3023]
[1734353089544,2.56316,3901.5,3899.9,0.3023]
[1734353089748,0.38523561,3902.0,3900.0,0.02563844]
[1734353089749,2.56293,3901.8,3900.0,0.02563844]
[1734353090061,2.5632,3901.4,3900.3,0.76917]
[1734353090358,2.5632,3901.4,3900.1,0.3116]
[1734353090359,2.56337,3901.1,3900.1,0.3116]
[1734353091555,4.08333258,3901.7,3900.1,0.3116]
[1734353091770,4.08333258,3901.7,3900.1,1.08079]
[1734353092068,2.56324,3901.4,3900.1,0.3116]
[1734353092275,2.56324,3901.4,3900.2,0.76919]
[1734353092427,0.66462226,3901.6,3900.3,0.02563398]
[1734353092634,3.22767226,3901.6,3900.5,0.3116]
[1734353092834,3.02311602,3902.1,3900.5,0.3116]
[1734353092835,0.8305,3902.1,3900.5,0.3116]
[1734353093056,2.56285,3901.9,3900.7,0.76908]
[1734353093256,2.56285,3901.9,3900.8,0.3116]
[1734353093579,0.8305,3902.1,3900.8,0.3116]
[1734353093734,2.56298,3901.7,3900.8,0.3116]
[1734353094167,2.56285,3901.9,3900.8,0.3116]
[1734353094373,2.563,3901.7,3900.8,0.3116]
[1734353096287,0.339314,3902.0,3900.8,0.3116]
[1734353096449,5.58613602,3901.7,3900.8,0.3116]
[1734353096785,2.56352,3900.9,3899.9,0.3116]
[1734353096990,2.5636,3900.8,3899.9,0.3116]
[1734353097336,0.8091,3901.5,3899.9,0.3116]
[1734353097536,2.56361,3900.8,3899.9,0.3116]
[1734353097978,2.56324,3901.3,3899.9,0.3116]
[1734353098290,2.56352,3900.9,3899.9,0.3116]
[1734353100572,2.56364,3900.7,3899.9,0.3116]
[1734353100752,2.56359,3900.8,3899.9,0.3116]
[1734353101779,2.56335,3901.2,3899.9,0.3116]
[1734353101981,2.56371,3900.6,3899.9,0.3116]
[1734353102835,0.30536033,3901.1,3899.9,0.3116]
[1734353103082,2.56368,3900.7,3899.9,0.3116]
[1734353103288,0.30536033,3901.1,3899.9,0.3116]
[1734353103579,0.30536033,3901.1,3899.9,1.08083]
[1734353103580,2.56345,3901.0,3899.9,1.08083]